bitfinex-derivatives/quotes_ETHF0:USTF0_20250910
["timestamp","ask_amount","ask_price","bid_price","bid_amount"]
[1757538909547,0.715,4339.1,4339.0,0.422]
[1757538909946,0.715,4339.1,4339.0,0.7437]
[1757538911750,0.715,4339.1,4339.0,0.8727]
[1757538918456,0.4042,4339.1,4339.0,0.8727]
[1757538918957,0.3108,4339.9,4339.0,0.551]
[1757538919259,0.715,4339.9,4339.8,0.7437]
[1757538920460,0.715,4339.9,4339.8,0.531]
[1757538921761,0.715,4339.9,4339.8,0.7437]
[1757538924458,0.715,4340.9,4340.8,0.7437]
[1757538925370,0.4042,4340.9,4340.8,0.7437]
[1757538925567,0.1986,4340.9,4340.8,0.7437]
[1757538925870,0.715,4341.9,4341.8,0.7437]
[1757538926160,0.1986,4341.9,4341.8,0.7437]
[1757538926462,0.715,4341.9,4341.5,0.129]
[1757538926856,0.715,4341.9,4341.8,0.5282]
[1757538927057,0.715,4341.9,4341.8,0.7424]
[1757538928863,1.12946,4341.9,4341.8,0.7424]
[1757538930566,0.5031,4341.2,4341.1,0.749]
[1757538930872,0.7017,4341.2,4341.1,0.749]
[1757538932461,1.03605,4342.4,4341.1,0.749]
[1757538932462,0.7017,4342.5,4342.4,0.5348]
[1757538932663,0.81803,4342.2,4342.1,0.5348]
[1757538932859,0.81803,4342.2,4341.7,0.233]
[1757538932860,0.7017,4341.8,4341.7,0.6631]
[1757538933063,0.7017,4341.8,4341.7,0.233]
[1757538933372,0.7017,4341.8,4341.7,0.982]
[1757538936871,1.11607,4342.9,4342.8,0.2159]
[1757538937069,0.7017,4342.4,4342.3,0.749]
[1757538937574,0.2981,4342.4,4342.3,0.749]
[1757538939670,0.1292,4343.0,4342.3,0.749]
[1757538939875,0.5328,4343.0,4342.9,0.2159]
[1757538940075,0.8309,4343.0,4342.9,0.2159]
[1757538941377,0.1986,4344.9,4344.6,0.3189]
[1757538941575,0.1153,4344.0,4343.1,0.3189]
[1757538941770,0.1153,4344.0,4342.6,0.3189]
[1757538941771,0.7017,4343.2,4342.6,0.3189]
[1757538941970,0.4036,4343.2,4343.1,0.749]
[1757538942273,0.2981,4343.5,4343.1,0.4301]
[1757538942472,0.4036,4343.3,4343.2,0.749]
[1757538942672,0.7017,4343.3,4343.2,0.749]
[1757538943374,0.4036,4343.3,4343.2,0.749]
[1757538944078,0.7017,4343.3,4343.2,0.5348]
[1757538945579,0.7017,4343.3,4342.6,0.3189]
[1757538946274,0.1733,4344.5,4343.3,0.3189]
[1757538946275,0.2981,4344.4,4343.3,0.3189]
[1757538946470,0.7017,4344.4,4344.3,0.749]
[1757538950883,0.7017,4344.4,4344.3,0.5348]
[1757538951076,0.2981,4344.3,4344.1,0.3189]
[1757538951272,0.1153,4344.5,4344.2,0.2159]
[1757538951584,0.7017,4344.3,4344.2,0.5348]
[1757538951887,0.2981,4345.4,4344.7,0.3189]
[1757538952085,0.205,4345.0,4344.9,0.84427]
[1757538952380,0.205,4345.0,4344.9,1.16317]
[1757538954983,0.205,4345.0,4344.9,0.749]
[1757538955277,0.7017,4345.0,4344.9,0.749]
[1757538955484,0.7017,4345.0,4344.6,0.4142]
[1757538955782,0.7017,4344.9,4344.8,0.3189]
[1757538956985,0.7017,4344.9,4344.8,0.5348]
[1757538958486,0.7017,4344.9,4344.8,0.3189]
[1757538959585,0.7017,4344.9,4344.8,0.5231]
[1757538960876,0.7017,4344.9,4344.8,0.7308]
[1757538962683,0.7017,4344.9,4344.8,0.5231]
[1757538962883,0.3176,4344.6,4344.2,0.7173]
[1757538963083,0.5242,4344.6,4344.5,0.8429]
[1757538963383,0.2066,4344.6,4344.5,0.8429]
[1757538963582,0.7389,4344.6,4344.0,0.1279]
[1757538963786,0.2147,4343.3,4343.2,0.4119]
[1757538963992,0.4213,4343.3,4343.2,0.7173]
[1757538964580,0.2066,4343.3,4343.2,0.7173]
[1757538966182,0.4213,4343.6,4343.5,0.5375]
[1757538966383,0.7389,4343.6,4343.5,0.8429]
[1757538968990,0.4213,4343.6,4343.5,0.8429]
[1757538974993,0.2066,4343.6,4343.5,0.8429]
[1757538975192,0.3176,4344.4,4343.6,0.3054]
[1757538975394,0.5242,4344.4,4344.3,0.7173]
[1757538975692,1.15352329,4344.4,4344.3,0.7173]
[1757538975888,0.2066,4344.4,4344.3,0.7173]
[1757538976694,0.5242,4344.4,4344.3,0.7173]
[1757538976889,0.2066,4344.4,4344.3,0.7173]
[1757538986706,0.7389,4344.4,4344.3,0.7173]
[1757538992102,0.7389,4344.4,4344.1,0.3155]
[1757538992299,0.7389,4344.4,4344.0,0.1256]
[1757538992491,0.7389,4344.4,4344.1,0.3155]
[1757538992897,0.7389,4344.4,4344.3,0.2175]
[1757538993096,0.7389,4344.4,4344.3,0.533]
[1757538993307,0.7389,4344.4,4343.5,0.1256]
[1757538993602,0.7389,4344.4,4343.6,0.3155]
[1757538993898,0.4208,4343.7,4343.6,0.533]
[1757538994099,0.7442,4343.7,4343.6,0.533]
[1757538994297,0.7442,4343.7,4343.6,0.7412]
[1757539000506,0.7442,4343.7,4343.6,0.533]
[1757539001913,0.7442,4343.7,4343.1,0.3155]
[1757539004905,0.7442,4342.1,4342.0,0.8615]
[1757539005105,0.5364,4342.9,4342.1,0.3155]
[1757539005505,0.97448,4342.8,4342.7,0.533]
[1757539005707,0.7442,4342.8,4342.7,0.533]
[1757539005903,0.7442,4342.8,4342.1,0.3155]
[1757539016529,0.7442,4342.9,4342.8,0.533]
[1757539018128,33.157,4343.8,4343.1,0.4229]
[1757539018318,0.2007,4343.3,4343.2,0.7444]
[1757539021826,0.238,4344.1,4344.0,0.1255]
[1757539022033,0.9407,4344.1,4344.0,0.8699]
[1757539024231,0.9407,4344.1,4344.0,0.5286]
[1757539026132,0.7027,4344.1,4344.0,0.5286]
[1757539026537,0.7027,4344.1,4344.0,0.7444]
[1757539029835,0.7027,4344.1,4344.0,0.3215]
[1757539030236,0.7027,4344.1,4344.0,0.5286]
[1757539034235,0.7027,4344.1,4344.0,0.3215]
[1757539034436,0.7027,4344.1,4343.6,0.3215]
[1757539034632,0.7027,4344.1,4343.5,0.1255]
[1757539034838,0.7027,4343.6,4343.5,0.2071]
[1757539035036,0.7027,4343.6,4343.0,0.1255]
[1757539035439,0.7027,4343.6,4343.1,0.3215]
[1757539040436,0.3984,4343.2,4343.1,0.5286]
[1757539040744,0.7027,4343.2,4343.1,0.5286]
[1757539041550,0.7027,4343.2,4343.1,0.7444]
[1757539042547,2.06865885,4346.1,4343.2,0.41433]
[1757539042548,1.24119531,4345.3,4343.2,0.41433]
[1757539042847,0.73521,4344.4,4343.3,0.3215]
[1757539043142,0.7027,4344.4,4344.3,0.2071]
[1757539043345,0.7027,4344.4,4344.3,0.5286]
[1757539043547,0.93288,4344.4,4344.3,0.5286]
[1757539043750,0.7027,4344.4,4344.3,0.5286]
[1757539044348,1.33427157,4344.4,4344.3,0.5286]
[1757539045145,1.33427157,4344.4,4344.3,0.7444]
[1757539046349,1.33427157,4344.4,4344.3,0.5286]
[1757539047843,1.57127157,4344.4,4344.3,0.5286]
[1757539050054,1.57127157,4344.4,4343.6,0.3272]
[1757539050247,0.2124,4343.7,4343.6,0.7306]
[1757539051348,0.7352,4343.7,4343.6,0.7306]
[1757539068362,0.306,4344.8,4343.7,0.3272]
[1757539068577,0.1154,4344.5,4343.7,0.3272]
[1757539068873,0.7352,4344.3,4344.2,0.5276]
[1757539069075,1.36833774,4344.3,4344.2,0.5276]
[1757539069273,1.36833774,4344.3,4344.2,0.7306]
[1757539074984,1.60333774,4344.3,4344.2,0.7306]
[1757539077387,0.84553774,4344.3,4344.2,0.7306]
[1757539077687,1.08053774,4344.3,4344.2,0.7306]
[1757539080389,0.63313774,4344.3,4344.2,0.7306]
[1757539080587,0.235,4344.4,4344.2,0.7306]
[1757539080782,0.235,4344.4,4344.3,0.7205]
[1757539081477,0.4324,4344.4,4344.3,0.7205]
[1757539084187,1.58180701,4344.4,4344.3,0.7205]
[1757539085089,1.58180701,4344.4,4344.3,0.5229]
[1757539085389,1.58180701,4344.4,4344.3,0.3119]
[1757539085894,1.58180701,4344.4,4344.0,0.1267]
[1757539086185,0.9489,4344.4,4344.1,0.3119]
[1757539086387,0.9489,4344.4,4344.0,0.1267]
[1757539087292,0.63288335,4344.3,4344.1,0.3119]
[1757539087489,0.1974,4343.6,4343.5,1.07620999]
[1757539087695,0.1974,4343.6,4343.5,0.846]
[1757539089794,0.235,4344.4,4343.5,0.5341]
[1757539089795,0.3076,4344.3,4343.5,0.5341]
[1757539089985,0.7139,4344.3,4344.2,0.211]
[1757539090189,0.7139,4344.3,4344.2,0.5229]
[1757539090392,0.1974,4344.3,4344.2,0.7205]
[1757539090597,0.4324,4344.5,4344.4,0.4086]
[1757539090796,0.4324,4344.5,4344.4,0.7205]
[1757539090991,1.06530543,4344.5,4344.4,0.7205]
[1757539092492,1.37290543,4344.5,4344.4,0.7205]
[1757539094001,1.13790543,4344.5,4344.4,0.7205]
[1757539094303,1.58180543,4344.5,4344.4,0.7205]
[1757539095601,1.58180543,4344.5,4344.4,0.5229]
[1757539096802,1.58180543,4344.5,4344.4,0.3119]
[1757539097005,1.58180543,4344.5,4344.4,0.5229]
[1757539097503,1.58180543,4344.5,4344.4,0.7205]
[1757539097999,1.69720543,4344.5,4344.0,0.1288]
[1757539098206,0.7139,4344.2,4344.1,0.3119]
[1757539098804,0.7139,4344.2,4343.6,0.3119]
[1757539104002,0.1153,4344.0,4343.1,0.3119]
[1757539104206,0.7139,4343.2,4343.1,0.5229]
[1757539104406,0.7139,4343.2,4343.1,0.7205]
[1757539107710,0.7139,4343.2,4342.6,0.3218]
[1757539108208,0.7139,4343.2,4343.1,0.5235]
[1757539108409,0.7139,4343.2,4343.1,0.7291]
[1757539113214,0.7139,4343.2,4343.1,0.5235]
[1757539113414,0.7139,4343.2,4343.1,0.7291]
[1757539121118,0.7139,4343.2,4343.1,0.5235]
[1757539121321,0.7139,4343.2,4343.1,0.7291]
[1757539125125,0.4287,4344.4,4344.3,0.7291]
[1757539125426,1.06425938,4344.4,4344.3,0.7291]
[1757539126024,0.4287,4344.4,4344.3,0.7291]
[1757539126525,0.7325,4344.4,4344.3,0.7291]
[1757539126822,0.7325,4344.4,4344.3,0.5235]
[1757539127425,0.7325,4344.4,4344.3,0.3218]
[1757539127623,0.7325,4344.4,4344.3,0.5235]
[1757539129026,0.7325,4344.4,4344.3,0.7291]
[1757539129620,0.4287,4344.4,4344.3,0.7291]
[1757539130029,0.7325,4344.4,4344.3,0.7291]
[1757539133222,0.7325,4344.4,4344.3,0.3218]
[1757539133622,0.7325,4344.4,4344.3,0.5235]
[1757539133824,0.7325,4344.4,4344.0,0.1189]
[1757539134127,0.7325,4344.4,4344.1,0.3218]
[1757539134332,0.7325,4344.4,4344.3,0.2017]
[1757539134532,0.7325,4344.4,4344.1,0.3218]
[1757539134733,0.7325,4344.4,4343.5,0.1189]
[1757539134928,0.4287,4344.4,4343.6,0.23020999]
[1757539135133,0.7325,4343.8,4343.7,0.7291]
[1757539137232,0.1153,4345.5,4343.7,0.7291]
[1757539137434,0.7183,4344.9,4344.8,0.7032]
[1757539137840,0.9523,4344.9,4344.8,0.7032]
[1757539138335,0.7183,4344.9,4344.8,0.7032]
[1757539138535,0.4079,4344.9,4344.8,0.7032]
[1757539140740,0.7183,4344.9,4344.8,0.7032]
[1757539141536,0.4079,4344.9,4344.8,0.7032]
[1757539142030,0.7183,4344.9,4344.8,0.7032]
[1757539142540,0.9523,4344.9,4344.8,0.7032]
[1757539142932,0.6419,4344.9,4344.8,0.7032]
[1757539143338,0.3104,4346.3,4345.1,0.2972]
[1757539143631,0.198,4345.2,4345.1,0.7032]
[1757539143942,0.198,4345.2,4345.1,0.93330999]
[1757539144140,0.3104,4345.5,4345.1,0.63610999]
[1757539144341,0.5084,4345.5,4345.4,0.406]
[1757539144542,0.198,4345.5,4345.4,0.7032]
[1757539148840,0.7183,4345.5,4345.4,0.5013]
[1757539149041,0.7183,4345.5,4345.4,0.2972]
[1757539149247,0.7183,4345.5,4345.4,0.5013]
[1757539149847,0.4079,4345.5,4345.4,0.7032]
[1757539150442,0.7183,4345.5,4345.4,0.5013]
[1757539150844,0.198,4345.5,4345.4,0.7032]
[1757539151350,0.7183,4345.5,4345.4,0.7032]
[1757539151950,0.7183,4345.5,4345.4,0.5013]
[1757539153343,0.7183,4345.5,4345.4,0.2972]
[1757539153548,0.8336,4345.5,4345.0,0.1262]
[1757539154348,0.8336,4345.5,4344.6,0.2972]
[1757539154547,0.198,4344.7,4344.6,0.7032]
[1757539155552,0.3104,4345.0,4344.6,0.7032]
[1757539155746,0.3104,4345.0,4344.7,0.2972]
[1757539155955,0.7183,4345.0,4344.9,0.406]
[1757539156152,0.7183,4345.0,4344.9,0.7032]
[1757539156952,0.7183,4345.0,4344.6,0.2972]
[1757539156953,0.8334,4345.0,4344.6,0.2972]
[1757539157149,0.1153,4345.5,4344.8,0.2041]
[1757539157345,0.7183,4344.9,4344.8,0.5013]
[1757539158251,0.7183,4344.9,4344.8,0.7032]
[1757539162156,0.7183,4344.9,4344.8,0.5013]
[1757539163659,0.7183,4344.9,4344.1,0.2972]
[1757539163956,0.7183,4344.8,4344.7,0.5013]
[1757539165151,0.7183,4344.8,4344.7,0.2972]
[1757539165456,0.7183,4344.8,4344.1,0.2972]
[1757539165654,0.3104,4344.7,4344.6,0.2041]
[1757539165852,0.7183,4344.7,4344.6,0.7032]
[1757539166153,0.7183,4344.7,4344.6,0.5013]
[1757539167260,0.7183,4344.7,4344.6,0.2972]
[1757539167961,0.7183,4344.7,4344.1,0.3003]
[1757539171262,0.7169,4344.2,4344.1,0.5092]
[1757539173564,0.7169,4344.2,4344.1,0.7168]
[1757539174762,0.4117,4344.2,4344.1,0.7168]
[1757539175966,0.7169,4344.2,4344.1,0.7168]
[1757539185876,0.3052,4345.2,4344.7,0.3003]
[1757539186079,0.3052,4345.2,4344.5,0.118]
[1757539186080,1.58365846,4345.1,4345.0,0.5092]
[1757539188276,1.58365846,4345.1,4345.0,0.3003]
[1757539188475,1.58365846,4345.1,4344.6,0.3003]
[1757539188676,0.4117,4344.7,4344.6,0.5092]
[1757539188879,0.7169,4344.7,4344.6,0.7168]
[1757539191382,1.35031226,4344.7,4344.6,0.7168]
[1757539192882,1.58431226,4344.7,4344.6,0.7168]
[1757539193486,1.58431226,4344.7,4344.6,0.3003]
[1757539195488,1.58431226,4344.7,4344.1,0.3003]
[1757539195788,0.9509,4344.7,4344.1,0.3003]
[1757539196289,0.63382661,4344.6,4344.1,0.3003]
[1757539196491,0.7169,4344.6,4344.5,0.5092]
[1757539196691,1.35080358,4344.6,4344.5,0.5092]
[1757539197389,1.35080358,4344.6,4344.5,0.6989]
[1757539197691,1.35080358,4344.6,4344.5,0.8208]
[1757539198091,1.35080358,4344.6,4344.5,0.6989]
[1757539199286,1.35080358,4344.6,4344.5,0.5017]
[1757539199490,1.35080358,4344.6,4344.0,0.118]
[1757539199685,0.7169,4344.6,4344.1,0.3046]
[1757539199891,0.7169,4344.6,4344.5,0.506]
[1757539200092,1.35096043,4344.6,4344.5,0.506]
[1757539201490,0.7265,4344.2,4344.1,0.3046]
[1757539201693,0.4092,4343.8,4343.7,0.2014]
[1757539201892,0.7265,4343.8,4343.7,0.7032]
[1757539203086,0.7265,4343.8,4343.7,0.506]
[1757539203292,0.7265,4343.8,4343.7,0.7032]
[1757539205496,0.4092,4343.8,4343.7,0.7032]
[1757539206295,0.4092,4343.8,4343.5,0.1189]
[1757539206296,0.3173,4344.4,4343.8,0.3046]
[1757539206496,0.7265,4344.4,4344.3,0.506]
[1757539206693,1.36060904,4344.4,4344.3,0.506]
[1757539208887,1.36060904,4344.4,4344.3,0.3046]
[1757539209297,1.36060904,4344.4,4344.0,0.1219]
[1757539209490,0.7265,4344.4,4344.1,0.3046]
[1757539209796,0.7265,4344.2,4344.1,0.2014]
[1757539209996,0.7265,4344.2,4344.1,0.506]
[1757539212402,0.7265,4344.2,4343.5,0.1189]
[1757539212596,0.7265,4344.2,4343.6,0.3046]
[1757539214597,0.4092,4343.7,4343.6,0.2014]
[1757539214799,0.7265,4343.7,4343.6,0.506]
[1757539220500,0.7265,4343.7,4343.6,0.3046]
[1757539220708,0.7265,4343.7,4343.1,0.3046]
[1757539222509,0.7265,4343.7,4343.6,0.506]
[1757539222805,0.9605,4343.7,4343.6,0.506]
[1757539223305,0.9605,4343.7,4343.6,0.7032]
[1757539225205,0.9605,4343.7,4343.1,0.3046]
[1757539234214,0.9605,4343.7,4342.6,0.3114]
[1757539234417,0.7239,4342.7,4342.6,0.7134]
[1757539234818,0.7239,4342.7,4342.6,0.5079]
[1757539235720,0.7239,4342.7,4342.6,0.7134]
[1757539237216,0.414,4342.7,4342.6,0.7134]
[1757539237517,0.7239,4342.7,4342.6,0.7134]
[1757539245119,0.2116,4342.7,4342.6,0.7134]
[1757539259935,0.723,4342.7,4342.6,0.7134]
[1757539260333,0.414,4342.7,4342.6,0.7134]
[1757539260728,0.723,4342.7,4342.6,0.7134]
[1757539261135,0.414,4342.7,4342.6,0.7134]
[1757539262941,0.723,4342.7,4342.6,0.7134]
[1757539264231,0.2116,4342.7,4342.6,0.7134]
[1757539265331,0.234,4343.0,4342.6,0.402]
[1757539265530,0.85502059,4342.9,4342.8,0.7177]
[1757539267336,1.16402059,4342.9,4342.8,0.7177]
[1757539268740,1.36112059,4342.9,4342.8,0.7177]
[1757539272344,1.36112059,4342.9,4342.8,0.302]
[1757539272938,1.36112059,4342.9,4342.8,0.5016]
[1757539273340,1.36112059,4342.9,4342.5,0.1211]
[1757539273541,0.722,4342.7,4342.6,0.5016]
[1757539273740,1.36112059,4342.7,4342.6,0.5016]
[1757539274443,1.36112059,4342.7,4342.6,0.7177]
[1757539275445,1.36112059,4342.7,4342.6,0.302]
[1757539276043,1.36112059,4342.7,4342.6,0.5016]
[1757539284652,1.36112059,4342.7,4342.1,0.302]
[1757539284958,0.722,4342.3,4342.2,0.5016]
[1757539285158,0.722,4342.3,4342.2,0.7177]
[1757539285660,0.413,4342.3,4342.2,0.7177]
[1757539287363,0.7263,4342.3,4342.2,0.7177]
[1757539289860,0.413,4342.3,4342.2,0.7177]
[1757539295968,0.2159,4342.3,4342.2,0.7177]
[1757539296365,0.233,4342.9,4342.2,0.4157]
[1757539296672,0.67178,4342.9,4342.8,0.7475]
[1757539296864,1.31089395,4342.9,4342.8,0.7475]
[1757539297167,0.233,4343.4,4343.0,0.1218]
[1757539297366,0.7548,4343.4,4343.3,0.7475]
[1757539297566,1.39372544,4343.4,4343.3,0.7475]
[1757539299564,1.08042544,4343.4,4343.3,0.7475]
[1757539299966,0.84742544,4343.4,4343.3,0.7475]
[1757539300167,0.63892544,4343.4,4343.3,0.7475]
[1757539300367,0.233,4343.6,4343.5,0.8693]
[1757539300764,1.07994273,4343.6,4343.5,0.8693]
[1757539302373,0.4415,4343.6,4343.5,0.8693]
[1757539303970,0.5218,4344.3,4344.2,0.4318]
[1757539304168,1.59898288,4344.3,4344.2,0.7475]
[1757539304475,1.05268288,4344.3,4344.2,0.7475]
[1757539304777,1.28568288,4344.3,4344.2,0.7475]
[1757539304969,1.59898288,4344.3,4344.2,0.7475]
[1757539305968,1.59898288,4344.3,4344.2,0.3157]
[1757539306464,1.59898288,4344.3,4343.6,0.3157]
[1757539306683,1.59898288,4344.3,4343.6,0.5317]
[1757539306684,0.728,4343.7,4343.6,0.5317]
[1757539306867,0.728,4343.7,4343.6,0.7475]
[1757539307274,0.728,4343.7,4343.6,0.5317]
[1757539307473,0.728,4343.7,4343.6,0.3157]
[1757539307674,0.728,4343.7,4343.6,0.5317]
[1757539309479,0.728,4343.7,4343.1,0.3157]
[1757539316483,0.1154,4343.5,4342.6,0.3157]
[1757539316683,0.728,4342.7,4342.6,0.7475]
[1757539352713,0.3238,4343.0,4342.6,0.4318]
[1757539352907,0.63651902,4342.9,4342.7,0.3185]
[1757539353112,0.43706,4343.0,4342.9,0.7328]
[1757539353314,1.07358876,4343.0,4342.9,0.7328]
[1757539353519,1.60258876,4343.0,4342.9,0.7328]
[1757539353819,1.37232876,4343.0,4342.9,0.7328]
[1757539354321,1.37232876,4343.0,4342.9,0.3185]
[1757539364431,1.37232876,4343.0,4342.9,0.5349]
[1757539379649,1.37232876,4343.0,4342.9,0.7328]
[1757539382944,1.37232876,4343.0,4342.9,0.5349]
[1757539384848,1.48732876,4343.0,4342.5,0.1218]
[1757539385049,0.8508,4343.0,4342.6,0.2976]
[1757539388746,0.8508,4343.0,4342.5,0.1218]
[1757539389249,0.8508,4343.0,4342.6,0.2976]
[1757539389450,0.8508,4343.0,4342.5,0.1218]
[1757539389654,0.8508,4343.0,4342.6,0.2976]
[1757539389953,0.8508,4343.0,4342.5,0.1218]
[1757539391356,0.8508,4343.0,4342.6,0.2976]
[1757539391546,0.8508,4343.0,4342.5,0.1218]
[1757539391852,0.8508,4343.0,4342.6,0.2976]
[1757539393854,0.3962,4342.2,4342.1,0.5095]
[1757539394054,0.6986,4342.2,4342.1,0.95287999]
[1757539394954,0.6986,4342.2,4342.1,0.7226]
[1757539401363,0.6986,4342.2,4342.1,0.5095]
[1757539402055,0.6986,4342.2,4341.6,0.2976]
[1757539404758,0.6986,4341.7,4341.6,0.5095]
[1757539405360,0.6986,4341.7,4341.6,0.7226]
[1757539406561,0.6986,4341.7,4341.6,0.2976]
[1757539407070,0.6986,4341.7,4341.6,0.5095]
[1757539410073,0.6986,4341.7,4340.6,0.3152]
[1757539410276,0.6986,4341.7,4339.7,3.30880724]
[1757539410574,0.3046,4341.4,4340.1,0.23037]
[1757539410966,0.3046,4341.4,4339.6,0.41467]
[1757539411366,0.3046,4341.4,4340.1,0.23037999]
[1757539411873,0.722,4341.4,4341.3,0.4302]
[1757539412068,0.955,4341.4,4341.3,0.4302]
[1757539412772,1.15029208,4341.4,4341.3,0.4302]
[1757539413171,0.955,4341.4,4341.3,0.4302]
[1757539414172,0.955,4341.4,4340.5,0.1181]
[1757539414369,0.955,4341.4,4340.5,0.34845999]
[1757539414572,0.955,4341.4,4340.5,0.1181]
[1757539416976,0.955,4341.4,4339.6,0.41466]
[1757539417177,0.955,4341.4,4340.1,0.23037999]
[1757539417575,0.955,4341.4,4340.2,0.23037]
[1757539417880,0.955,4341.4,4340.1,0.23037999]
[1757539418377,0.955,4341.4,4340.2,0.23037]
[1757539418576,0.955,4341.4,4340.1,0.23037999]
[1757539418983,0.955,4341.4,4340.2,0.23037]
[1757539419279,0.955,4341.4,4340.1,0.23037999]
[1757539419668,0.955,4341.4,4340.2,0.23037]
[1757539419873,0.955,4341.4,4340.1,0.23037999]
[1757539420275,0.955,4341.4,4340.2,0.23037]
[1757539420475,0.955,4341.4,4340.1,0.23037999]
[1757539420876,0.955,4341.4,4340.2,0.23037]
[1757539421081,0.955,4341.4,4340.1,0.23037999]
[1757539421477,0.955,4341.4,4340.2,0.23037]
[1757539421680,0.955,4341.4,4340.1,0.23037999]
[1757539422181,0.955,4341.4,4340.2,0.23037]
[1757539422485,0.955,4341.4,4340.1,0.23037999]
[1757539422672,0.955,4341.4,4340.2,0.23037]
[1757539422874,0.955,4341.4,4340.1,0.23037999]
[1757539423276,1.18537001,4341.4,4340.2,0.23037]
[1757539423482,1.18537001,4341.4,4340.1,0.23037999]
[1757539423874,1.18537001,4341.4,4340.2,0.23037]
[1757539424082,1.18537001,4341.4,4340.1,0.23037999]
[1757539424586,1.18537001,4341.4,4340.2,0.23037]
[1757539424881,0.722,4340.2,4339.5,0.1294]
[1757539425086,0.722,4340.2,4339.6,0.23039]
[1757539425589,0.722,4340.2,4339.5,0.1294]
[1757539425976,0.722,4340.2,4339.5,0.35981999]
[1757539426785,0.722,4340.2,4339.5,0.1294]
[1757539428282,0.722,4340.2,4339.0,0.1181]
[1757539428479,0.722,4340.2,4339.1,0.23043999]
[1757539428984,0.722,4340.2,4339.2,0.23043]
[1757539429175,0.722,4340.2,4339.1,0.23043999]
[1757539429584,0.817,4340.2,4340.1,0.4302]
[1757539431588,4.74281,4340.2,4337.7,27.3]
[1757539431791,0.3046,4339.9,4338.1,0.23046]
[1757539431988,0.3046,4339.7,4338.1,0.23046]
[1757539432291,0.3046,4339.4,4338.2,0.23047]
[1757539432486,0.3046,4339.4,4338.1,0.23047]
[1757539432791,0.3046,4339.4,4338.0,0.1181]
[1757539432991,0.3046,4339.4,4338.1,0.23048]
[1757539433293,0.23048001,4339.3,4338.0,0.1181]
[1757539433496,0.5121,4338.1,4338.0,0.5483]
[1757539433897,0.5121,4338.1,4338.0,0.4302]
[1757539434995,0.5121,4338.1,4338.0,0.5483]
[1757539435505,0.5121,4338.1,4338.0,0.4302]
[1757539435801,0.722,4337.9,4337.8,0.4302]
[1757539436006,0.5121,4337.9,4337.8,0.4302]
[1757539436195,0.3046,4337.9,4337.8,0.4302]
[1757539437000,0.3046,4337.9,4337.8,0.7382]
[1757539437209,0.5094,4337.9,4337.8,0.7382]
[1757539438103,0.7185,4337.9,4337.8,0.5076]
[1757539438403,0.5364,4338.5,4338.4,0.1996]
[1757539439002,0.8508,4338.5,4338.4,0.1996]
[1757539439706,0.8508,4338.5,4338.2,0.308]
[1757539442502,0.8508,4338.5,4337.6,0.308]
[1757539443305,0.8508,4338.5,4338.4,0.3978]
[1757539443507,0.8508,4338.5,4338.4,0.7058]
[1757539443808,0.7283,4338.5,4338.4,0.7058]
[1757539447813,0.5192,4338.5,4338.4,0.7058]
[1757539448116,0.7283,4338.5,4338.4,0.7058]
[1757539448507,0.8477,4338.5,4338.1,0.308]
[1757539448708,0.8477,4338.5,4338.4,0.1996]
[1757539449015,0.8477,4338.5,4338.4,0.7058]
[1757539451507,0.7283,4338.5,4338.4,0.7058]
[1757539454315,1.14308,4338.5,4338.4,0.7058]
[1757539459824,0.41486,4337.7,4337.6,0.7058]
[1757539460122,0.41486,4337.7,4337.6,0.9388]
[1757539460321,0.41486,4337.7,4337.6,1.16934]
[1757539461225,0.41486,4337.7,4337.6,0.93634]
[1757539461427,0.41486,4337.7,4337.6,1.16934]
[1757539461920,0.41486,4337.7,4337.6,0.9388]
[1757539462526,0.41486,4337.7,4337.6,1.35366]
[1757539463726,0.41486,4337.7,4337.6,1.12066]
[1757539463926,0.41486,4337.7,4337.6,1.35366]
[1757539465228,0.41484,4337.9,4337.8,1.12064]
[1757539465728,0.41482,4338.1,4338.0,0.8327]
[1757539466227,0.61962,4338.1,4338.0,0.8327]
[1757539466421,0.93402,4338.1,4338.0,0.9388]
[1757539466923,0.93402,4338.1,4338.0,1.0611]
[1757539467127,0.41482,4338.1,4338.0,1.0611]
[1757539467630,0.73282,4338.1,4338.0,1.0611]
[1757539470119,0.93752,4338.1,4338.0,1.0611]
[1757539471530,0.41482,4338.1,4338.0,1.0611]
[1757539472423,0.73282,4338.1,4338.0,1.0611]
[1757539475230,0.93752,4338.1,4338.0,1.0611]
[1757539479132,0.93752,4338.1,4338.0,0.9388]
[1757539483935,1.13552,4338.1,4338.0,0.9388]
[1757539484235,1.13552,4338.1,4338.0,0.233]
[1757539484829,1.13552,4338.1,4338.0,0.4511]
[1757539485837,1.13552,4338.1,4338.0,0.7723]
[1757539486339,1.13552,4338.1,4338.0,0.9746]
[1757539495643,0.61954,4337.8,4337.7,0.92598521]
[1757539495833,0.93754,4337.8,4337.7,1.15898521]
[1757539496440,0.41484,4337.8,4337.7,1.15898521]
[1757539498538,0.71054,4337.8,4337.7,1.15898521]
[1757539501237,0.71054,4337.8,4337.7,0.9746]
[1757539502047,0.92566,4337.6,4337.5,0.8308]
[1757539502244,0.41486,4337.6,4337.5,1.47867]
[1757539502842,0.41486,4337.6,4337.5,1.0638]
[1757539503041,0.71056,4337.6,4337.5,1.0638]